[Event "Chess Festival Groningen 2023 | A"]
[Site "Groningen, Netherlands"]
[Date "2023.12.27"]
[Round "6.15"]
[White "Sanket, Chakravarty"]
[Black "Aashman, Gupta"]
[Result "1/2-1/2"]
[TimeControl "90min/40moves + 30min + 30sec/move"]
[WhiteFideId "25032038"]
[BlackFideId "45022500"]
[WhiteElo "2361"]
[BlackElo "2235"]

1. e4 {[%clk 01:30:52]} {[%emt 00:00:07]} e5 {[%clk 01:29:20]} {[%emt
00:01:40]} 2. Nf3 {[%clk 01:31:05]} {[%emt 00:00:16]} Nc6 {[%clk 01:29:37]}
{[%emt 00:00:13]} 3. Bc4 {[%clk 01:31:13]} {[%emt 00:00:22]} Nf6 {[%clk
01:29:11]} {[%emt 00:00:57]} 4. d3 {[%clk 01:31:27]} {[%emt 00:00:15]} Be7
{[%clk 01:28:13]} {[%emt 00:01:28]} 5. O-O {[%clk 01:31:25]} {[%emt 00:00:31]}
O-O {[%clk 01:28:05]} {[%emt 00:00:39]} 6. Nc3 {[%clk 01:31:39]} {[%emt
00:00:16]} d6 {[%clk 01:27:09]} {[%emt 00:01:28]} 7. a4 {[%clk 01:31:51]}
{[%emt 00:00:17]} Na5 {[%clk 01:21:56]} {[%emt 00:05:43]} 8. Ba2 {[%clk
01:31:18]} {[%emt 00:01:02]} c5 {[%clk 01:21:52]} {[%emt 00:00:35]} 9. Bg5
{[%clk 01:31:32]} {[%emt 00:00:16]} Nc6 {[%clk 01:15:47]} {[%emt 00:06:35]} 10.
Bxf6 {[%clk 01:31:52]} {[%emt 00:00:10]} Bxf6 {[%clk 01:16:06]} {[%emt
00:00:11]} 11. Nd5 {[%clk 01:32:14]} {[%emt 00:00:07]} Nb4 {[%clk 01:03:52]}
{[%emt 00:12:45]} 12. Nxb4 {[%clk 01:21:26]} {[%emt 00:11:17]} cxb4 {[%clk
01:03:56]} {[%emt 00:00:26]} 13. a5 {[%clk 01:21:32]} {[%emt 00:00:24]} Qc7
{[%clk 00:53:07]} {[%emt 00:11:19]} 14. Qd2 {[%clk 01:20:35]} {[%emt 00:01:26]}
Bg4 {[%clk 00:46:47]} {[%emt 00:06:50]} 15. Ne1 {[%clk 01:17:07]} {[%emt
00:03:58]} Qc5 {[%clk 00:45:06]} {[%emt 00:02:11]} 16. Bd5 {[%clk 01:08:40]}
{[%emt 00:08:57]} Rab8 {[%clk 00:44:00]} {[%emt 00:01:37]} 17. a6 {[%clk
01:04:58]} {[%emt 00:04:12]} b5 {[%clk 00:30:07]} {[%emt 00:14:23]} 18. h3
{[%clk 00:43:04]} {[%emt 00:22:23]} Be6 {[%clk 00:28:50]} {[%emt 00:01:50]} 19.
d4 {[%clk 00:41:13]} {[%emt 00:02:19]} Qb6 {[%clk 00:18:00]} {[%emt 00:11:20]}
20. dxe5 {[%clk 00:39:30]} {[%emt 00:07:29]} Bxe5 {[%clk 00:17:28]} 21. Qxb4
{[%clk 00:38:52]} Rbc8 {[%clk 00:15:04]} 22. Bxe6 {[%clk 00:33:14]} {[%emt
00:05:57]} fxe6 {[%clk 00:15:31]} {[%emt 00:00:02]} 23. Qb3 {[%clk 00:33:26]}
{[%emt 00:00:18]} Rc4 {[%clk 00:10:34]} {[%emt 00:05:28]} 24. Nf3 {[%clk
00:32:06]} {[%emt 00:01:49]} Bf4 {[%clk 00:09:53]} {[%emt 00:01:11]} 25. c3
{[%clk 00:29:37]} {[%emt 00:03:00]} e5 {[%clk 00:07:33]} {[%emt 00:02:50]} 26.
Qd1 {[%clk 00:28:13]} {[%emt 00:01:53]} Qc6 {[%clk 00:06:49]} {[%emt 00:01:14]}
27. Ra5 {[%clk 00:21:06]} {[%emt 00:07:38]} Kh8 {[%clk 00:05:58]} {[%emt
00:01:21]} 28. Qd3 {[%clk 00:20:53]} {[%emt 00:00:43]} Rd8 {[%clk 00:04:45]}
{[%emt 00:01:44]} 29. g3 {[%clk 00:19:26]} {[%emt 00:01:56]} Qb6 {[%clk
00:04:15]} {[%emt 00:00:59]} 30. b4 {[%clk 00:18:28]} {[%emt 00:01:29]} d5
{[%clk 00:03:56]} {[%emt 00:00:50]} 31. gxf4 {[%clk 00:11:49]} {[%emt
00:07:09]} dxe4 {[%clk 00:04:20]} {[%emt 00:00:05]} 32. Qe3 {[%clk 00:12:13]}
{[%emt 00:00:05]} Qxe3 {[%clk 00:01:12]} {[%emt 00:03:39]} 33. fxe3 {[%clk
00:12:39]} {[%emt 00:00:04]} exf3 {[%clk 00:01:41]} {[%emt 00:00:02]} 34. fxe5
{[%clk 00:11:32]} {[%emt 00:01:36]} Rxc3 {[%clk 00:00:35]} {[%emt 00:01:36]} 35.
Rxf3 {[%clk 00:12:00]} {[%emt 00:00:02]} h6 {[%clk 00:00:34]} {[%emt 00:00:32]}
36. Rxb5 {[%clk 00:11:43]} {[%emt 00:00:47]} Rd2 {[%clk 00:00:33]} {[%emt
00:00:30]} 37. e6 {[%clk 00:11:05]} {[%emt 00:01:07]} Rc1+ {[%clk 00:00:36]}
{[%emt 00:00:27]} 38. Rf1 {[%clk 00:11:33]} {[%emt 00:00:02]} Rcc2 {[%clk
00:01:05]} {[%emt 00:00:02]} 39. Rf8+ {[%clk 00:11:13]} {[%emt 00:00:50]} Kh7
{[%clk 00:01:34]} {[%emt 00:00:02]} 40. e7 {[%clk 00:11:36]} {[%emt 00:00:07]}
Rd1+ {[%clk 00:01:35]} {[%emt 00:00:28]} 41. Rf1 {[%clk 00:12:01]} {[%emt
00:00:05]} Rdd2 {[%clk 00:02:04]} {[%emt 00:00:01]} 42. Rf2 {[%clk 00:04:49]}
{[%emt 00:07:41]} Rxf2 {[%clk 00:02:24]} {[%emt 00:00:11]} 43. e8=Q {[%clk
00:05:13]} {[%emt 00:00:06]} 1/2-1/2

[Event "Chess Festival Groningen 2023 | A"]
[Site "Groningen, Netherlands"]
[Date "2023.12.27"]
[Round "6.16"]
[White "Nicolai, Amir"]
[Black "Beerdsen, Thomas"]
[Result "0-1"]
[TimeControl "90min/40moves + 30min + 30sec/move"]
[WhiteElo "2156"]
[BlackElo "2511"]

1. d4 {[%clk 01:30:56]} {[%emt 00:00:03]} d5 {[%clk 01:30:47]} {[%emt
00:00:13]} 2. c4 {[%clk 01:31:18]} {[%emt 00:00:08]} c6 {[%clk 01:31:13]}
{[%emt 00:00:05]} 3. cxd5 {[%clk 01:31:33]} {[%emt 00:00:15]} cxd5 {[%clk
01:31:37]} {[%emt 00:00:05]} 4. Bf4 {[%clk 01:31:59]} {[%emt 00:00:04]} Nc6
{[%clk 01:31:40]} {[%emt 00:00:27]} 5. e3 {[%clk 01:32:20]} {[%emt 00:00:09]}
Nf6 {[%clk 01:30:09]} {[%emt 00:02:01]} 6. Nc3 {[%clk 01:30:35]} {[%emt
00:02:14]} Bf5 {[%clk 01:27:02]} {[%emt 00:03:37]} 7. Nf3 {[%clk 01:16:51]}
{[%emt 00:14:15]} e6 {[%clk 01:22:44]} {[%emt 00:04:48]} 8. Qb3 {[%clk
01:15:53]} {[%emt 00:01:28]} Bb4 {[%clk 01:19:50]} {[%emt 00:03:24]} 9. Ne5
{[%clk 01:14:30]} {[%emt 00:01:53]} Qa5 {[%clk 01:10:50]} {[%emt 00:09:30]} 10.
a3 {[%clk 01:04:11]} {[%emt 00:10:49]} Bxc3+ {[%clk 01:07:22]} {[%emt
00:03:59]} 11. bxc3 {[%clk 00:58:06]} {[%emt 00:06:35]} Nxe5 {[%clk 01:02:59]}
{[%emt 00:04:53]} 12. Bxe5 {[%clk 00:57:39]} {[%emt 00:01:00]} Ne4 {[%clk
01:00:46]} {[%emt 00:02:40]} 13. Rc1 {[%clk 00:37:19]} {[%emt 00:20:50]} f6
{[%clk 00:54:09]} {[%emt 00:07:07]} 14. Bf4 {[%clk 00:30:36]} {[%emt 00:07:13]}
Rc8 {[%clk 00:46:55]} {[%emt 00:07:53]} 15. f3 {[%clk 00:17:58]} {[%emt
00:13:07]} Nxc3 {[%clk 00:39:48]} {[%emt 00:07:35]} 16. Kf2 {[%clk 00:17:08]}
{[%emt 00:01:21]} O-O {[%clk 00:25:52]} {[%emt 00:14:18]} 17. Bd6 {[%clk
00:15:45]} {[%emt 00:01:54]} Na2 {[%clk 00:25:51]} {[%emt 00:00:30]} 18. Rxc8
{[%clk 00:11:25]} {[%emt 00:04:50]} Rxc8 {[%clk 00:25:09]} {[%emt 00:01:16]} 19.
Qxb7 {[%clk 00:11:47]} {[%emt 00:00:05]} Rc2+ {[%clk 00:22:11]} {[%emt
00:03:27]} 20. Be2 {[%clk 00:11:26]} {[%emt 00:00:50]} h6 {[%clk 00:14:47]}
{[%emt 00:07:54]} 21. Re1 {[%clk 00:08:47]} {[%emt 00:03:10]} Bd3 {[%clk
00:13:51]} {[%emt 00:01:26]} 22. Qd7 {[%clk 00:03:56]} {[%emt 00:05:21]} Qd2
{[%clk 00:09:08]} {[%emt 00:05:13]} 23. Qxe6+ {[%clk 00:02:09]} {[%emt
00:02:17]} Kh7 {[%clk 00:08:26]} {[%emt 00:01:13]} 24. Bf8 {[%clk 00:00:53]}
{[%emt 00:01:46]} Qxe1+ {[%clk 00:08:47]} {[%emt 00:00:09]} 25. Kxe1 {[%clk
00:01:09]} {[%emt 00:00:13]} Rxe2+ {[%clk 00:09:12]} {[%emt 00:00:05]} 26. Kd1
{[%clk 00:01:33]} {[%emt 00:00:06]} Nc3+ {[%clk 00:09:38]} {[%emt 00:00:04]} 27.
Kc1 {[%clk 00:01:59]} {[%emt 00:00:04]} Rc2# {[%clk 00:10:04]} {[%emt
00:00:03]} 0-1

[Event "Chess Festival Groningen 2023 | A"]
[Site "Groningen, Netherlands"]
[Date "2023.12.27"]
[Round "6.17"]
[White "Toktomushev, Teimur"]
[Black "Elgersma, Onno"]
[Result "1/2-1/2"]
[TimeControl "90min/40moves + 30min + 30sec/move"]
[WhiteElo "2249"]
[BlackElo "2310"]

1. d4 {[%clk 01:30:58]} {[%emt 00:00:01]} Nf6 {[%clk 01:30:41]} {[%emt
00:00:19]} 2. c4 {[%clk 01:31:19]} {[%emt 00:00:09]} e6 {[%clk 01:31:06]}
{[%emt 00:00:05]} 3. Nf3 {[%emt 00:00:14]} Bb4+ {[%clk 01:30:57]} {[%emt
00:00:36]} 4. Bd2 {[%clk 01:31:58]} {[%emt 00:00:10]} a5 {[%clk 01:31:23]}
{[%emt 00:00:04]} 5. g3 {[%clk 01:31:20]} {[%emt 00:01:07]} d5 {[%clk
01:31:48]} {[%emt 00:00:05]} 6. Bg2 {[%clk 01:31:27]} {[%emt 00:00:22]} O-O
{[%clk 01:32:13]} {[%emt 00:00:06]} 7. Qc2 {[%clk 01:27:33]} {[%emt 00:04:24]}
c5 {[%clk 01:31:24]} {[%emt 00:01:19]} 8. cxd5 {[%clk 01:14:19]} {[%emt
00:13:44]} cxd4 {[%clk 01:31:14]} {[%emt 00:00:40]} 9. Nxd4 {[%clk 01:14:26]}
{[%emt 00:00:24]} Qb6 {[%clk 01:31:39]} {[%emt 00:00:05]} 10. e3 {[%clk
01:13:43]} {[%emt 00:01:12]} exd5 {[%clk 01:32:04]} {[%emt 00:00:05]} 11. O-O
{[%clk 01:13:35]} {[%emt 00:00:38]} Nc6 {[%clk 01:32:01]} {[%emt 00:00:33]} 12.
Nxc6 {[%clk 01:05:28]} {[%emt 00:08:38]} bxc6 {[%clk 01:32:26]} {[%emt
00:00:05]} 13. Rc1 {[%clk 00:58:18]} {[%emt 00:07:39]} Be6 {[%clk 01:25:59]}
{[%emt 00:06:57]} 14. Qxc6 {[%clk 00:39:17]} {[%emt 00:19:31]} Bxd2 {[%clk
01:23:15]} {[%emt 00:03:14]} 15. Nxd2 {[%clk 00:30:30]} {[%emt 00:09:17]} Qxb2
{[%clk 01:23:12]} {[%emt 00:00:32]} 16. Qc3 {[%clk 00:25:02]} {[%emt 00:05:58]}
Rfb8 {[%clk 01:10:59]} {[%emt 00:12:42]} 17. Nb3 {[%clk 00:14:05]} {[%emt
00:11:28]} Qxc3 {[%clk 01:04:15]} {[%emt 00:07:13]} 18. Rxc3 {[%clk 00:14:33]}
{[%emt 00:00:08]} h5 {[%clk 00:59:55]} {[%emt 00:04:45]} 19. h3 {[%clk
00:10:46]} {[%emt 00:04:21]} a4 {[%clk 00:55:50]} {[%emt 00:04:32]} 20. Nd4
{[%clk 00:10:32]} {[%emt 00:00:44]} Rb2 {[%clk 00:56:06]} {[%emt 00:00:14]} 21.
a3 {[%clk 00:04:43]} {[%emt 00:06:22]} Rab8 {[%clk 00:55:14]} {[%emt 00:07:28]}
22. Rac1 {[%clk 00:01:56]} Ra2 {[%clk 00:54:30]} 23. R1c2 {[%clk 00:01:06]}
Rb1+ {[%clk 00:53:27]} {[%emt 00:01:12]} 24. Kh2 {[%clk 00:01:32]} {[%emt
00:00:04]} Raa1 {[%clk 00:53:08]} {[%emt 00:00:51]} 25. Nxe6 {[%clk 00:00:51]}
{[%emt 00:01:09]} fxe6 {[%clk 00:53:37]} {[%emt 00:00:01]} 26. Rc7 {[%clk
00:00:39]} {[%emt 00:00:42]} Kh7 {[%clk 00:48:02]} {[%emt 00:06:04]} 27. Ra7
{[%clk 00:00:33]} {[%emt 00:00:36]} Rc1 {[%clk 00:29:24]} {[%emt 00:19:07]} 28.
Rxc1 {[%clk 00:00:51]} {[%emt 00:00:12]} Rxc1 {[%clk 00:29:52]} {[%emt
00:00:02]} 29. Rxa4 {[%clk 00:01:16]} {[%emt 00:00:05]} Ra1 {[%clk 00:30:07]}
{[%emt 00:00:16]} 30. Bf3 {[%clk 00:00:35]} {[%emt 00:01:11]} e5 {[%clk
00:28:30]} {[%emt 00:02:07]} 31. g4 {[%clk 00:00:36]} {[%emt 00:00:29]} hxg4
{[%clk 00:22:36]} {[%emt 00:06:23]} 32. Bxg4 {[%clk 00:01:02]} {[%emt
00:00:04]} Kg6 {[%clk 00:21:24]} {[%emt 00:01:42]} 33. Be6 {[%clk 00:00:37]}
{[%emt 00:00:54]} Ra2 {[%clk 00:19:25]} {[%emt 00:02:30]} 34. Kg1 {[%clk
00:01:04]} {[%emt 00:00:04]} Rd2 {[%clk 00:19:37]} {[%emt 00:00:18]} 35. Ra5
{[%clk 00:00:32]} {[%emt 00:01:02]} d4 {[%clk 00:15:04]} {[%emt 00:05:03]} 36.
Kf1 {[%clk 00:00:33]} {[%emt 00:00:29]} d3 {[%clk 00:14:36]} {[%emt 00:00:57]}
37. Rxe5 {[%clk 00:00:33]} {[%emt 00:00:30]} Rd1+ {[%clk 00:14:25]} {[%emt
00:00:41]} 38. Kg2 {[%clk 00:01:00]} {[%emt 00:00:03]} d2 {[%clk 00:14:46]}
{[%emt 00:00:10]} 39. Bb3 {[%clk 00:00:35]} {[%emt 00:00:55]} Rc1 {[%clk
00:13:56]} {[%emt 00:01:19]} 40. Kf3 {[%emt 00:14:13]} 1/2-1/2

[Event "Chess Festival Groningen 2023 | A"]
[Site "Groningen, Netherlands"]
[Date "2023.12.27"]
[Round "6.18"]
[White "Adamovics, Aleksejs"]
[Black "Slagboom, Leandro"]
[Result "0-1"]
[TimeControl "90min/40moves + 30min + 30sec/move"]
[WhiteElo "2015"]
[BlackElo "2304"]

1. c4 {[%clk 01:30:57]} {[%emt 00:00:03]} e6 {[%clk 01:30:35]} {[%emt
00:00:25]} 2. Nc3 {[%clk 01:30:21]} {[%emt 00:01:07]} d5 {[%clk 01:30:32]}
{[%emt 00:00:33]} 3. d4 {[%clk 01:30:36]} {[%emt 00:00:15]} Nf6 {[%clk
01:29:37]} {[%emt 00:01:24]} 4. cxd5 {[%clk 01:30:56]} {[%emt 00:00:10]} exd5
{[%clk 01:30:03]} {[%emt 00:00:05]} 5. Bg5 {[%clk 01:31:21]} {[%emt 00:00:04]}
c6 {[%clk 01:28:41]} {[%emt 00:01:51]} 6. e3 {[%clk 01:31:28]} {[%emt
00:00:24]} Be6 {[%clk 01:28:35]} {[%emt 00:00:36]} 7. Bd3 {[%clk 01:31:23]}
{[%emt 00:00:34]} Nbd7 {[%clk 01:28:40]} {[%emt 00:00:26]} 8. Nge2 {[%clk
01:31:39]} {[%emt 00:00:14]} h6 {[%clk 01:28:43]} {[%emt 00:00:26]} 9. Bh4
{[%clk 01:32:03]} {[%emt 00:00:07]} g5 {[%clk 01:29:08]} {[%emt 00:00:05]} 10.
Bg3 {[%clk 01:32:29]} {[%emt 00:00:03]} Nh5 {[%clk 01:29:31]} {[%emt 00:00:08]}
11. O-O {[%clk 01:32:55]} {[%emt 00:00:04]} Nxg3 {[%clk 01:28:50]} {[%emt
00:01:11]} 12. Nxg3 {[%clk 01:33:22]} {[%emt 00:00:02]} h5 {[%clk 01:28:58]}
{[%emt 00:00:23]} 13. e4 {[%clk 01:33:47]} {[%emt 00:00:05]} dxe4 {[%clk
01:28:22]} {[%emt 00:01:06]} 14. Ngxe4 {[%clk 01:33:47]} {[%emt 00:00:31]} Qe7
{[%clk 01:27:38]} {[%emt 00:01:13]} 15. Qd2 {[%clk 01:33:20]} {[%emt 00:00:57]}
Bh6 {[%clk 01:27:14]} {[%emt 00:00:54]} 16. Rad1 {[%clk 01:32:29]} {[%emt
00:01:22]} O-O-O {[%clk 01:24:25]} {[%emt 00:03:19]} 17. b4 {[%clk 01:32:24]}
{[%emt 00:00:36]} Nb6 {[%clk 00:53:17]} {[%emt 00:31:38]} 18. b5 {[%clk
01:22:33]} {[%emt 00:10:21]} Rxd4 {[%clk 00:48:49]} {[%emt 00:05:00]} 19. bxc6
{[%clk 01:18:37]} {[%emt 00:04:23]} Rhd8 {[%clk 00:42:58]} {[%emt 00:06:21]} 20.
cxb7+ {[%clk 01:14:02]} {[%emt 00:05:05]} Kxb7 {[%clk 00:42:43]} {[%emt
00:00:44]} 21. Qe2 {[%clk 01:00:05]} {[%emt 00:14:28]} g4 {[%clk 00:40:10]}
{[%emt 00:03:02]} 22. Nb5 {[%clk 00:50:46]} {[%emt 00:09:49]} R4d7 {[%clk
00:35:58]} {[%emt 00:04:43]} 23. Qc2 {[%clk 00:47:20]} {[%emt 00:03:55]} Bf8
{[%clk 00:33:13]} {[%emt 00:03:16]} 24. a4 {[%clk 00:34:27]} {[%emt 00:13:26]}
a5 {[%clk 00:25:00]} {[%emt 00:11:20]} 25. Rfe1 {[%clk 00:26:03]} {[%emt
00:06:14]} Nd5 {[%clk 00:19:30]} {[%emt 00:06:00]} 26. Nec3 {[%clk 00:23:50]}
{[%emt 00:02:43]} Nb4 {[%clk 00:13:47]} {[%emt 00:06:13]} 27. Be4+ {[%clk
00:23:31]} {[%emt 00:00:48]} Kb6 {[%clk 00:12:27]} {[%emt 00:01:49]} 28. Qe2
{[%clk 00:20:35]} {[%emt 00:03:26]} Rxd1 {[%clk 00:12:20]} {[%emt 00:00:37]} 29.
Rxd1 {[%clk 00:21:03]} {[%emt 00:00:02]} Rxd1+ {[%clk 00:12:13]} {[%emt
00:00:37]} 30. Qxd1 {[%clk 00:20:24]} {[%emt 00:01:09]} Qd7 {[%clk 00:11:37]}
{[%emt 00:01:07]} 31. Qe2 {[%clk 00:20:15]} {[%emt 00:00:39]} Bc5 {[%clk
00:09:56]} {[%emt 00:02:10]} 32. g3 {[%clk 00:14:10]} {[%emt 00:06:35]} Nc6
{[%clk 00:05:20]} {[%emt 00:05:06]} 33. Bxc6 {[%clk 00:10:53]} {[%emt
00:03:48]} Qxc6 {[%clk 00:05:26]} {[%emt 00:00:23]} 34. Qe5 {[%clk 00:11:06]}
{[%emt 00:00:18]} Kb7 {[%clk 00:04:28]} {[%emt 00:01:28]} 35. Ne4 {[%clk
00:10:55]} {[%emt 00:00:40]} Bb6 {[%clk 00:04:11]} {[%emt 00:00:47]} 36. Ned6+
{[%clk 00:06:21]} {[%emt 00:05:05]} Ka6 {[%clk 00:03:57]} {[%emt 00:00:43]} 37.
Qe1 {[%clk 00:06:09]} {[%emt 00:00:42]} Bc5 {[%clk 00:02:08]} {[%emt 00:02:19]}
38. Ne4 {[%clk 00:03:44]} {[%emt 00:02:55]} Bb6 {[%clk 00:02:33]} {[%emt
00:00:05]} 39. Ned6 {[%clk 00:03:28]} {[%emt 00:00:46]} Bc5 {[%clk 00:01:39]}
{[%emt 00:01:24]} 40. Ne4 {[%clk 00:03:49]} {[%emt 00:00:09]} Bd5 {[%clk
00:00:42]} {[%emt 00:01:27]} 41. Nbc3 {[%clk 00:25:53]} {[%emt 00:08:26]} Bb4
{[%clk 00:25:53]} {[%emt 00:05:19]} 42. Qe2+ {[%clk 00:24:42]} {[%emt
00:01:41]} Qc4 {[%clk 00:24:02]} {[%emt 00:02:21]} 43. Qe3 {[%clk 00:23:10]}
{[%emt 00:02:02]} Bc6 {[%clk 00:20:21]} {[%emt 00:04:11]} 44. Nb5 {[%clk
00:17:07]} {[%emt 00:06:34]} Bxb5 {[%clk 00:20:35]} {[%emt 00:00:15]} 45. axb5+
{[%clk 00:17:35]} {[%emt 00:00:02]} Qxb5 {[%clk 00:20:27]} {[%emt 00:00:38]} 46.
Qc1 {[%clk 00:16:33]} {[%emt 00:01:32]} Kb7 {[%clk 00:19:46]} {[%emt 00:01:11]}
47. Qf4 {[%clk 00:16:10]} {[%emt 00:00:53]} Qd5 {[%clk 00:17:11]} {[%emt
00:03:05]} 48. Ng5 {[%clk 00:10:58]} {[%emt 00:05:42]} Bd2 {[%clk 00:12:02]}
{[%emt 00:05:39]} 49. Qxf7+ {[%clk 00:11:26]} {[%emt 00:00:02]} Qxf7 {[%clk
00:12:25]} {[%emt 00:00:07]} 50. Nxf7 {[%clk 00:11:48]} {[%emt 00:00:08]} Kc6
{[%clk 00:11:12]} {[%emt 00:01:43]} 51. Ne5+ {[%clk 00:11:40]} {[%emt
00:00:39]} Kb5 {[%clk 00:10:45]} {[%emt 00:00:57]} 52. Nf7 {[%clk 00:10:40]}
{[%emt 00:01:30]} a4 {[%clk 00:10:23]} {[%emt 00:00:52]} 53. Nd6+ {[%clk
00:10:06]} {[%emt 00:01:04]} Kb4 {[%clk 00:10:47]} {[%emt 00:00:06]} 54. Nf5
{[%clk 00:10:30]} {[%emt 00:00:06]} Bc3 {[%clk 00:10:47]} {[%emt 00:00:31]} 55.
Ne3 {[%clk 00:10:40]} {[%emt 00:00:20]} Kb3 {[%clk 00:11:11]} {[%emt 00:00:05]}
0-1

[Event "Chess Festival Groningen 2023 | A"]
[Site "Groningen, Netherlands"]
[Date "2023.12.27"]
[Round "6.19"]
[White "Boeren, Jurriaan"]
[Black "Jaiveer, Mahendru"]
[Result "1/2-1/2"]
[TimeControl "90min/40moves + 30min + 30sec/move"]
[BlackFideId "25611151"]
[WhiteElo "2102"]
[BlackElo "2294"]

1. e4 e5 2. Nf3 Nc6 3. Bb5 a6 4. Ba4 Nf6 5. O-O Nxe4 6. d4 b5 7. Bb3 d5 8. dxe5
Be6 9. Qe2 Be7 10. Rd1 O-O 11. c4 bxc4 12. Bxc4 Bc5 13. Be3 Bxe3 14. Qxe3 Qb8
15. Bb3 Na5 16. Nbd2 Qa7 17. Qxa7 Rxa7 18. Nxe4 Nxb3 19. axb3 dxe4 20. Nd4 Rb7
21. Rxa6 Bxb3 22. Nxb3 Rxb3 23. Rc6 Rxb2 24. Rxc7 h5 25. h4 e3 26. fxe3 Re2 27.
Rdd7 Rxe3 28. Re7 Re4 29. g3 Re2 30. Kf1 Rb2 31. e6 1/2-1/2

[Event "Chess Festival Groningen 2023 | A"]
[Site "Groningen, Netherlands"]
[Date "2023.12.27"]
[Round "6.20"]
[White "Mierins, Emils Janis"]
[Black "Kumar, Prajit Sai"]
[Result "1-0"]
[TimeControl "90min/40moves + 30min + 30sec/move"]
[WhiteElo "2258"]
[BlackElo "2172"]

1. e4 {[%clk 01:30:57]} c5 {[%clk 01:30:55]} 2. Nf3 {[%clk 01:31:23]} Nc6
{[%clk 01:31:18]} 3. d4 {[%clk 01:31:48]} cxd4 {[%clk 01:31:41]} 4. Nxd4 {[%clk
01:32:14]} Nf6 {[%clk 01:32:02]} 5. Nc3 {[%clk 01:32:39]} {[%emt 00:00:04]} d6
{[%clk 01:32:28]} {[%emt 00:01:02]} 6. h3 {[%clk 01:33:03]} e5 {[%clk
01:31:09]} 7. Nf3 {[%clk 01:33:29]} h6 {[%clk 01:30:01]} 8. Bc4 {[%clk
01:33:50]} Be7 {[%clk 01:28:13]} 9. O-O {[%clk 01:34:01]} Be6 {[%clk 01:25:44]}
10. Qe2 {[%clk 01:29:49]} O-O {[%clk 01:22:59]} 11. Rd1 {[%clk 01:26:01]} Rc8
{[%clk 01:19:14]} 12. Nd5 {[%clk 01:11:25]} Re8 {[%clk 00:59:49]} 13. c3 {[%clk
00:59:29]} Nh7 {[%clk 00:46:03]} 14. a4 {[%clk 00:51:12]} Bg5 {[%clk 00:43:14]}
15. Nxg5 {[%clk 00:45:34]} Nxg5 {[%clk 00:43:20]} 16. f3 {[%clk 00:33:10]} Ne7
{[%clk 00:40:45]} 17. Nxe7+ {[%clk 00:32:02]} Rxe7 {[%clk 00:39:39]} 18. Bd5
{[%clk 00:32:09]} Bxd5 {[%clk 00:37:13]} 19. Rxd5 {[%clk 00:29:47]} Re6 {[%clk
00:37:30]} 20. Be3 {[%clk 00:29:35]} a6 {[%clk 00:34:32]} 21. Rad1 {[%clk
00:29:05]} f6 {[%clk 00:33:07]} 22. a5 {[%clk 00:28:10]} Nf7 {[%clk 00:32:48]}
23. Bb6 {[%clk 00:25:50]} Qe8 {[%clk 00:31:42]} 24. c4 {[%clk 00:24:35]} Re7
{[%clk 00:29:35]} 25. b3 {[%clk 00:22:47]} {[%emt 00:02:14]} Kh7 {[%clk
00:28:59]} {[%emt 00:00:50]} 26. Kh2 {[%clk 00:22:41]} {[%emt 00:00:45]} Qc6
{[%clk 00:26:36]} {[%emt 00:03:21]} 27. Rc1 {[%clk 00:20:16]} {[%emt 00:02:18]}
Qe8 {[%clk 00:27:01]} {[%emt 00:00:11]} 28. Rcd1 {[%clk 00:17:24]} {[%emt
00:03:17]} Qc6 {[%clk 00:26:59]} {[%emt 00:00:52]} 29. Be3 {[%clk 00:16:24]}
{[%emt 00:01:33]} Kg8 {[%clk 00:26:52]} {[%emt 00:00:13]} 30. Qd2 {[%clk
00:15:56]} {[%emt 00:01:39]} Rcc7 {[%clk 00:26:01]} {[%emt 00:00:39]} 31. Qb4
{[%clk 00:16:13]} {[%emt 00:00:13]} Kh7 {[%clk 00:25:53]} {[%emt 00:00:47]} 32.
Bb6 {[%clk 00:16:25]} {[%emt 00:00:44]} Rc8 {[%clk 00:25:17]} {[%emt 00:01:36]}
33. c5 {[%clk 00:15:00]} {[%emt 00:00:49]} dxc5 {[%clk 00:25:36]} {[%emt
00:00:33]} 34. Rxc5 {[%clk 00:15:19]} {[%emt 00:00:17]} 1-0